[Event "FIDE Grand Swiss 2023"]
[Site "Villa Marina, Douglas, Isle of Man, Isle Of Man"]
[Date "2023.11.05"]
[Round "11.42"]
[White "L'ami, Erwin"]
[Black "Theodorou, Nikolas"]
[Result "1/2-1/2"]
[TimeControl "40/90 + 30 + 30s/move"]
[WhiteFideId "1007998"]
[BlackFideId "4262875"]
[WhiteElo "2627"]
[BlackElo "2619"]

1. d4 {[%clk 01:40:58]} {[%emt 00:00:01]} Nf6 {[%clk 01:40:51]} {[%emt
00:00:09]} 2. c4 {[%clk 01:41:19]} {[%emt 00:00:08]} g6 {[%clk 01:41:09]}
{[%emt 00:00:12]} 3. Nc3 {[%clk 01:41:42]} {[%emt 00:00:07]} Bg7 {[%clk
01:41:35]} {[%emt 00:00:05]} 4. e4 {[%clk 01:42:03]} {[%emt 00:00:09]} d6
{[%clk 01:41:59]} {[%emt 00:00:06]} 5. Be2 {[%clk 01:42:25]} {[%emt 00:00:08]}
e5 {[%clk 01:42:23]} {[%emt 00:00:06]} 6. Nf3 {[%clk 01:42:11]} {[%emt
00:00:43]} O-O {[%clk 01:42:31]} {[%emt 00:00:23]} 7. dxe5 {[%clk 01:42:33]}
{[%emt 00:00:08]} dxe5 {[%clk 01:42:55]} {[%emt 00:00:06]} 8. Qxd8 {[%clk
01:42:49]} {[%emt 00:00:13]} Rxd8 {[%clk 01:43:22]} {[%emt 00:00:03]} 9. Bg5
{[%clk 01:43:07]} {[%emt 00:00:13]} Re8 {[%clk 01:42:43]} {[%emt 00:01:09]} 10.
Nd5 {[%clk 01:43:20]} {[%emt 00:00:17]} Nxd5 {[%clk 01:43:03]} {[%emt
00:00:10]} 11. cxd5 {[%clk 01:43:44]} {[%emt 00:00:06]} c6 {[%clk 01:43:16]}
{[%emt 00:00:17]} 12. Bc4 {[%clk 01:44:04]} {[%emt 00:00:10]} cxd5 {[%clk
01:34:45]} {[%emt 00:09:02]} 13. Bxd5 {[%clk 01:43:41]} {[%emt 00:00:52]} Na6
{[%clk 01:34:18]} {[%emt 00:00:58]} 14. O-O {[%clk 01:34:33]} {[%emt 00:09:37]}
Nb4 {[%clk 01:26:54]} {[%emt 00:07:54]} 15. Bc4 {[%clk 01:30:42]} {[%emt
00:04:21]} Be6 {[%clk 01:26:01]} {[%emt 00:01:23]} 16. Rfc1 {[%clk 01:30:09]}
{[%emt 00:01:03]} Bxc4 {[%clk 01:22:15]} {[%emt 00:04:16]} 17. Rxc4 {[%clk
01:30:28]} {[%emt 00:00:11]} Nc6 {[%clk 01:22:42]} {[%emt 00:00:03]} 18. Nd2
{[%clk 01:23:13]} {[%emt 00:07:44]} f6 {[%clk 01:13:23]} {[%emt 00:09:50]} 19.
Be3 {[%clk 01:22:54]} {[%emt 00:00:48]} Bf8 {[%clk 01:13:48]} {[%emt 00:00:06]}
20. Nb3 {[%clk 01:14:33]} {[%emt 00:08:50]} Rad8 {[%clk 01:11:32]} {[%emt
00:02:47]} 21. Nc5 {[%clk 01:05:58]} {[%emt 00:09:05]} Bxc5 {[%clk 01:09:21]}
{[%emt 00:02:42]} 22. Rxc5 {[%clk 01:06:16]} {[%emt 00:00:11]} Kf7 {[%clk
01:05:27]} {[%emt 00:04:24]} 23. Kf1 {[%clk 01:05:22]} {[%emt 00:01:23]} Rd7
{[%clk 01:03:02]} {[%emt 00:02:56]} 24. Rac1 {[%clk 01:04:31]} {[%emt
00:01:21]} Re6 {[%clk 00:58:46]} {[%emt 00:04:46]} 25. Rd5 {[%clk 01:01:45]}
{[%emt 00:03:16]} Red6 {[%clk 00:55:32]} {[%emt 00:03:45]} 26. Rxd6 {[%clk
00:59:27]} {[%emt 00:02:47]} Rxd6 {[%clk 00:55:58]} {[%emt 00:00:03]} 27. Ke2
{[%clk 00:53:20]} {[%emt 00:06:37]} Ke6 {[%clk 00:55:53]} {[%emt 00:00:36]} 28.
f3 {[%clk 00:51:58]} {[%emt 00:01:51]} Rd7 {[%clk 00:52:17]} {[%emt 00:04:07]}
29. Rc4 {[%clk 00:50:43]} {[%emt 00:01:45]} a6 {[%clk 00:51:18]} {[%emt
00:01:29]} 30. a4 {[%clk 00:48:29]} {[%emt 00:02:43]} Rc7 {[%clk 00:44:07]}
{[%emt 00:07:42]} 31. Rc3 {[%clk 00:46:38]} {[%emt 00:02:20]} 1/2-1/2

[Event "FIDE Grand Swiss 2023"]
[Site "Villa Marina, Douglas, Isle of Man, Isle Of Man"]
[Date "2023.11.05"]
[Round "11.43"]
[White "Gukesh, D"]
[Black "Akobian, Varuzhan"]
[Result "1-0"]
[TimeControl "40/90 + 30 + 30s/move"]
[WhiteFideId "46616543"]
[BlackFideId "13300580"]
[WhiteElo "2758"]
[BlackElo "2582"]

1. d4 {[%clk 01:40:58]} {[%emt 00:00:02]} Nf6 {[%clk 01:40:47]} {[%emt
00:00:13]} 2. Bf4 {[%clk 01:41:22]} {[%emt 00:00:06]} e6 {[%clk 01:38:13]}
{[%emt 00:03:03]} 3. e3 {[%clk 01:41:42]} {[%emt 00:00:11]} d5 {[%clk
01:36:23]} {[%emt 00:02:20]} 4. Nf3 {[%clk 01:42:05]} {[%emt 00:00:07]} Bd6
{[%clk 01:36:10]} {[%emt 00:00:43]} 5. c3 {[%clk 01:39:12]} {[%emt 00:03:23]}
O-O {[%clk 01:32:53]} {[%emt 00:03:47]} 6. Bd3 {[%clk 01:39:32]} {[%emt
00:00:10]} c5 {[%clk 01:27:22]} {[%emt 00:06:00]} 7. Ne5 {[%clk 01:39:54]}
{[%emt 00:00:09]} Qc7 {[%clk 01:26:14]} {[%emt 00:01:39]} 8. Nd2 {[%clk
01:40:17]} {[%emt 00:00:06]} Nbd7 {[%clk 01:21:45]} {[%emt 00:04:59]} 9. Ndf3
{[%clk 01:40:39]} {[%emt 00:00:08]} b6 {[%clk 01:21:31]} {[%emt 00:00:44]} 10.
h4 {[%clk 01:28:32]} {[%emt 00:12:37]} Bb7 {[%clk 01:11:19]} {[%emt 00:10:42]}
11. h5 {[%clk 01:27:31]} {[%emt 00:01:31]} Rad8 {[%clk 00:51:05]} {[%emt
00:20:44]} 12. g4 {[%clk 01:14:54]} {[%emt 00:13:06]} Ne4 {[%clk 00:48:44]}
{[%emt 00:02:51]} 13. g5 {[%clk 01:12:08]} {[%emt 00:03:16]} f6 {[%clk
00:33:16]} {[%emt 00:15:58]} 14. gxf6 {[%clk 01:11:21]} {[%emt 00:01:18]} Ndxf6
{[%clk 00:33:03]} {[%emt 00:00:43]} 15. Ke2 {[%clk 00:52:37]} {[%emt 00:19:14]}
Qc8 {[%clk 00:28:01]} {[%emt 00:05:31]} 16. Qg1 {[%clk 00:41:36]} {[%emt
00:11:31]} Ba6 {[%clk 00:26:09]} {[%emt 00:02:23]} 17. Rd1 {[%clk 00:29:03]}
{[%emt 00:13:03]} Bxd3+ {[%clk 00:19:58]} {[%emt 00:06:41]} 18. Rxd3 {[%clk
00:29:31]} {[%emt 00:00:02]} Rde8 {[%clk 00:13:43]} {[%emt 00:06:44]} 19. h6
{[%clk 00:26:36]} {[%emt 00:03:26]} Re7 {[%clk 00:14:05]} {[%emt 00:00:08]} 20.
hxg7 {[%clk 00:21:45]} {[%emt 00:05:20]} Rxg7 {[%clk 00:14:29]} {[%emt
00:00:07]} 21. Bh6 {[%clk 00:22:09]} {[%emt 00:00:06]} Rff7 {[%clk 00:12:46]}
{[%emt 00:02:13]} 22. Bxg7 {[%clk 00:19:56]} {[%emt 00:02:44]} Rxg7 {[%clk
00:13:10]} {[%emt 00:00:04]} 23. Qf1 {[%clk 00:19:07]} {[%emt 00:01:19]} Bxe5
{[%clk 00:11:54]} {[%emt 00:01:45]} 24. Nxe5 {[%clk 00:19:28]} {[%emt
00:00:11]} Qa6 {[%clk 00:11:15]} {[%emt 00:01:09]} 25. Qb1 {[%clk 00:11:27]}
{[%emt 00:08:32]} Kf8 {[%clk 00:11:26]} {[%emt 00:00:19]} 26. Rh4 {[%clk
00:10:01]} {[%emt 00:01:56]} Ke7 {[%clk 00:09:26]} {[%emt 00:02:28]} 27. Qc2
{[%clk 00:07:52]} {[%emt 00:02:40]} Rg1 {[%clk 00:06:56]} {[%emt 00:02:59]} 28.
c4 {[%clk 00:03:50]} {[%emt 00:04:33]} Ng3+ {[%clk 00:04:55]} {[%emt 00:02:30]}
29. Kf3 {[%clk 00:03:26]} {[%emt 00:00:55]} dxc4 {[%clk 00:02:32]} {[%emt
00:02:53]} 30. Rd1 {[%clk 00:01:38]} {[%emt 00:02:18]} Qb7+ {[%clk 00:01:58]}
{[%emt 00:01:04]} 31. d5 {[%clk 00:01:57]} {[%emt 00:00:11]} Nf5 {[%clk
00:00:49]} {[%emt 00:01:39]} 32. Rxg1 {[%clk 00:00:55]} {[%emt 00:01:31]} Qxd5+
{[%clk 00:00:35]} {[%emt 00:00:45]} 33. Ke2 {[%clk 00:00:49]} {[%emt 00:00:36]}
Nxh4 {[%clk 00:00:56]} {[%emt 00:00:09]} 34. Qxc4 {[%clk 00:00:36]} {[%emt
00:00:43]} Qxe5 {[%clk 00:00:57]} {[%emt 00:00:29]} 35. Qxh4 {[%clk 00:01:05]}
{[%emt 00:00:01]} Qxb2+ {[%clk 00:00:54]} {[%emt 00:00:34]} 36. Kf3 {[%clk
00:01:34]} Kd6 {[%clk 00:00:39]} {[%emt 00:00:45]} 37. Qf4+ {[%clk 00:01:07]}
{[%emt 00:00:56]} Qe5 {[%clk 00:00:32]} {[%emt 00:00:36]} 38. Qxe5+ {[%clk
00:00:54]} {[%emt 00:00:44]} Kxe5 {[%clk 00:01:00]} {[%emt 00:00:02]} 39. Rg7
{[%clk 00:00:36]} {[%emt 00:00:48]} a5 {[%clk 00:01:09]} {[%emt 00:00:22]} 40.
Rb7 {[%clk 00:00:36]} {[%emt 00:00:29]} Nd5 {[%clk 00:01:22]} {[%emt 00:00:17]}
41. e4 {[%clk 00:17:59]} {[%emt 00:33:08]} Nc3 {[%clk 00:48:19]} {[%emt
00:03:32]} 42. Rxb6 {[%clk 00:18:12]} {[%emt 00:00:17]} Nxe4 {[%clk 00:47:25]}
{[%emt 00:01:24]} 43. Rb5 {[%clk 00:12:01]} {[%emt 00:06:42]} a4 {[%clk
00:41:19]} {[%emt 00:06:35]} 44. Ra5 {[%clk 00:12:14]} {[%emt 00:00:18]} Nc3
{[%clk 00:38:47]} {[%emt 00:03:01]} 45. Rxc5+ {[%clk 00:12:39]} {[%emt
00:00:05]} Kd4 {[%clk 00:39:13]} {[%emt 00:00:03]} 46. Rh5 {[%clk 00:13:04]}
{[%emt 00:00:05]} e5 {[%clk 00:14:49]} {[%emt 00:24:55]} 47. a3 {[%clk
00:13:10]} {[%emt 00:00:24]} e4+ {[%clk 00:13:18]} {[%emt 00:02:00]} 48. Kf4
{[%clk 00:12:30]} {[%emt 00:01:10]} Kc4 {[%clk 00:05:33]} {[%emt 00:08:14]} 49.
Ke3 {[%clk 00:08:29]} {[%emt 00:04:32]} Nb5 {[%clk 00:02:24]} {[%emt 00:03:38]}
50. Rxh7 {[%clk 00:05:40]} {[%emt 00:03:20]} Nxa3 {[%clk 00:02:48]} {[%emt
00:00:05]} 51. Ra7 {[%clk 00:05:59]} {[%emt 00:00:12]} Nc2+ {[%clk 00:00:35]}
{[%emt 00:02:43]} 52. Kxe4 {[%clk 00:06:28]} {[%emt 00:00:02]} a3 {[%clk
00:00:43]} {[%emt 00:00:22]} 53. f4 {[%clk 00:06:46]} {[%emt 00:00:11]} Kb3
{[%clk 00:01:01]} {[%emt 00:00:12]} 54. f5 {[%clk 00:07:09]} {[%emt 00:00:07]}
a2 {[%clk 00:01:01]} {[%emt 00:00:30]} 55. Rxa2 {[%clk 00:07:27]} {[%emt
00:00:12]} Kxa2 {[%clk 00:01:14]} {[%emt 00:00:17]} 56. f6 {[%clk 00:07:56]}
{[%emt 00:00:01]} 1-0

[Event "FIDE Grand Swiss 2023"]
[Site "Villa Marina, Douglas, Isle of Man, Isle Of Man"]
[Date "2023.11.05"]
[Round "11.44"]
[White "Ivanchuk, Vasyl"]
[Black "Parligras, Mircea-Emilian"]
[Result "0-1"]
[TimeControl "40/90 + 30 + 30s/move"]
[WhiteFideId "14100010"]
[BlackFideId "1204297"]
[WhiteElo "2653"]
[BlackElo "2561"]

1. c4 {[%clk 01:40:58]} {[%emt 00:00:01]} e6 {[%clk 01:40:47]} {[%emt
00:00:13]} 2. Nc3 {[%clk 01:41:23]} {[%emt 00:00:06]} d5 {[%clk 01:40:12]}
{[%emt 00:01:04]} 3. d4 {[%clk 01:41:48]} {[%emt 00:00:05]} Nf6 {[%clk
01:40:36]} {[%emt 00:00:07]} 4. cxd5 {[%clk 01:42:15]} {[%emt 00:00:03]} exd5
{[%clk 01:41:01]} {[%emt 00:00:05]} 5. Bg5 {[%clk 01:42:41]} {[%emt 00:00:03]}
Be7 {[%clk 01:41:25]} {[%emt 00:00:06]} 6. e3 {[%clk 01:43:09]} {[%emt
00:00:02]} h6 {[%clk 01:41:42]} {[%emt 00:00:13]} 7. Bh4 {[%clk 01:43:35]}
{[%emt 00:00:05]} Bg4 {[%clk 01:41:23]} {[%emt 00:00:49]} 8. f3 {[%clk
01:43:41]} {[%emt 00:00:24]} Be6 {[%clk 01:41:47]} {[%emt 00:00:05]} 9. Bd3
{[%clk 01:44:09]} {[%emt 00:00:03]} c5 {[%clk 01:41:09]} {[%emt 00:01:08]} 10.
Nge2 {[%clk 01:44:34]} {[%emt 00:00:04]} Nc6 {[%clk 01:41:22]} {[%emt
00:00:17]} 11. O-O {[%clk 01:45:00]} {[%emt 00:00:04]} O-O {[%clk 01:41:47]}
{[%emt 00:00:05]} 12. a3 {[%clk 01:41:37]} {[%emt 00:03:53]} cxd4 {[%clk
01:36:46]} {[%emt 00:05:32]} 13. exd4 {[%clk 01:39:11]} {[%emt 00:02:56]} Rc8
{[%clk 01:25:56]} {[%emt 00:11:19]} 14. Kh1 {[%clk 01:37:29]} {[%emt 00:02:11]}
Re8 {[%clk 01:04:36]} {[%emt 00:21:51]} 15. Na4 {[%clk 01:34:25]} {[%emt
00:03:34]} Nd7 {[%clk 00:59:22]} {[%emt 00:05:44]} 16. Bxe7 {[%clk 01:33:55]}
{[%emt 00:01:00]} Qxe7 {[%clk 00:54:31]} {[%emt 00:05:21]} 17. Qd2 {[%clk
01:33:08]} {[%emt 00:01:15]} Qf6 {[%clk 00:50:03]} {[%emt 00:05:01]} 18. Rad1
{[%clk 01:25:47]} {[%emt 00:07:50]} Bf5 {[%clk 00:47:21]} {[%emt 00:03:12]} 19.
Bxf5 {[%clk 01:25:31]} {[%emt 00:00:47]} Qxf5 {[%clk 00:47:30]} {[%emt
00:00:20]} 20. Nc5 {[%clk 01:25:59]} {[%emt 00:00:02]} Rc7 {[%clk 00:37:38]}
{[%emt 00:10:23]} 21. Rf2 {[%clk 01:08:13]} {[%emt 00:18:15]} b6 {[%clk
00:30:56]} {[%emt 00:07:12]} 22. Nxd7 {[%clk 01:08:05]} {[%emt 00:00:39]} Rxd7
{[%clk 00:30:00]} {[%emt 00:01:25]} 23. g4 {[%clk 00:55:38]} {[%emt 00:12:56]}
Qg5 {[%clk 00:25:38]} {[%emt 00:04:53]} 24. Qxg5 {[%clk 00:55:18]} {[%emt
00:00:50]} hxg5 {[%clk 00:25:23]} {[%emt 00:00:46]} 25. Nc3 {[%clk 00:55:46]}
{[%emt 00:00:01]} Na5 {[%clk 00:23:17]} {[%emt 00:02:36]} 26. Kg2 {[%clk
00:51:35]} {[%emt 00:04:41]} f6 {[%clk 00:20:18]} {[%emt 00:03:30]} 27. Kg3
{[%clk 00:50:38]} {[%emt 00:01:26]} Kf7 {[%clk 00:20:36]} {[%emt 00:00:12]} 28.
h4 {[%clk 00:49:27]} {[%emt 00:01:42]} gxh4+ {[%clk 00:20:57]} {[%emt
00:00:09]} 29. Kxh4 {[%clk 00:49:53]} {[%emt 00:00:03]} Re3 {[%clk 00:16:32]}
{[%emt 00:04:55]} 30. Kg3 {[%clk 00:50:08]} {[%emt 00:00:14]} Nc4 {[%clk
00:15:23]} {[%emt 00:01:40]} 31. Rc2 {[%clk 00:48:58]} {[%emt 00:01:40]} Nxb2
{[%clk 00:15:14]} {[%emt 00:00:39]} 0-1

[Event "FIDE Grand Swiss 2023"]
[Site "Villa Marina, Douglas, Isle of Man, Isle Of Man"]
[Date "2023.11.05"]
[Round "11.45"]
[White "Adhiban, B."]
[Black "Santos Latasa, Jaime"]
[Result "1/2-1/2"]
[TimeControl "40/90 + 30 + 30s/move"]
[WhiteFideId "5018471"]
[BlackFideId "2293307"]
[WhiteElo "2551"]
[BlackElo "2650"]

1. e4 {[%clk 01:40:55]} {[%emt 00:00:05]} e5 {[%clk 01:40:52]} {[%emt
00:00:09]} 2. Nf3 {[%clk 01:41:21]} {[%emt 00:00:04]} Nc6 {[%clk 01:41:19]}
{[%emt 00:00:04]} 3. Bc4 {[%clk 01:41:42]} {[%emt 00:00:08]} Bc5 {[%clk
01:41:41]} {[%emt 00:00:08]} 4. c3 {[%clk 01:42:06]} {[%emt 00:00:06]} Nf6
{[%clk 01:42:05]} {[%emt 00:00:06]} 5. d4 {[%clk 01:42:30]} {[%emt 00:00:05]}
exd4 {[%clk 01:42:29]} {[%emt 00:00:06]} 6. e5 {[%clk 01:42:55]} {[%emt
00:00:05]} d5 {[%clk 01:42:52]} {[%emt 00:00:08]} 7. Bb5 {[%clk 01:43:19]}
{[%emt 00:00:06]} Ne4 {[%clk 01:43:15]} {[%emt 00:00:06]} 8. cxd4 {[%clk
01:43:45]} {[%emt 00:00:04]} Bb6 {[%clk 01:43:40]} {[%emt 00:00:06]} 9. Nc3
{[%clk 01:44:10]} {[%emt 00:00:05]} O-O {[%clk 01:43:49]} {[%emt 00:00:21]} 10.
Be3 {[%clk 01:44:36]} {[%emt 00:00:04]} f5 {[%clk 01:44:05]} {[%emt 00:00:13]}
11. exf6 {[%clk 01:44:55]} {[%emt 00:00:12]} Nxf6 {[%clk 01:44:23]} {[%emt
00:00:12]} 12. Bxc6 {[%clk 01:44:04]} {[%emt 00:01:21]} bxc6 {[%clk 01:44:39]}
{[%emt 00:00:17]} 13. Ne5 {[%clk 01:44:31]} Qd6 {[%clk 01:44:56]} {[%emt
00:00:14]} 14. O-O {[%clk 01:44:41]} {[%emt 00:00:19]} c5 {[%clk 01:41:47]}
{[%emt 00:03:39]} 15. dxc5 {[%clk 01:39:58]} {[%emt 00:05:14]} Bxc5 {[%clk
01:41:57]} {[%emt 00:00:19]} 16. Bxc5 {[%clk 01:35:49]} {[%emt 00:04:39]} Qxc5
{[%clk 01:41:44]} {[%emt 00:00:43]} 17. Na4 {[%clk 01:34:59]} {[%emt 00:01:20]}
Qd6 {[%clk 01:40:19]} {[%emt 00:01:55]} 18. Qd4 {[%clk 01:32:14]} {[%emt
00:03:16]} Nh5 {[%clk 01:15:04]} {[%emt 00:25:45]} 19. f4 {[%clk 01:23:58]}
{[%emt 00:08:46]} Rf5 {[%clk 01:12:40]} {[%emt 00:02:53]} 20. g3 {[%clk
01:09:47]} {[%emt 00:14:42]} g5 {[%clk 01:07:54]} {[%emt 00:05:16]} 21. Ng4
{[%clk 00:43:07]} {[%emt 00:27:10]} gxf4 {[%clk 01:03:10]} {[%emt 00:05:14]} 22.
Rae1 {[%clk 00:40:39]} {[%emt 00:02:58]} Ba6 {[%clk 01:00:48]} {[%emt
00:02:52]} 23. Nc5 {[%clk 00:39:19]} {[%emt 00:01:50]} fxg3 {[%clk 00:57:26]}
{[%emt 00:03:52]} 24. Nh6+ {[%clk 00:33:04]} {[%emt 00:06:44]} Qxh6 {[%clk
00:56:43]} {[%emt 00:01:14]} 25. Rxf5 {[%clk 00:33:30]} {[%emt 00:00:04]} gxh2+
{[%clk 00:56:18]} {[%emt 00:00:54]} 26. Kf2 {[%clk 00:32:17]} {[%emt 00:01:44]}
Bc4 {[%clk 00:53:38]} {[%emt 00:03:10]} 27. Nd7 {[%clk 00:15:24]} {[%emt
00:17:23]} Ng7 {[%clk 00:51:15]} {[%emt 00:02:53]} 28. Nf6+ {[%clk 00:15:17]}
{[%emt 00:00:37]} Kh8 {[%clk 00:50:41]} {[%emt 00:01:04]} 29. Ne8 {[%clk
00:14:49]} {[%emt 00:00:58]} Kg8 {[%clk 00:50:38]} {[%emt 00:00:33]} 30. Nf6+
{[%clk 00:15:00]} {[%emt 00:00:19]} Kh8 {[%clk 00:51:03]} {[%emt 00:00:05]} 31.
Ne8 {[%clk 00:12:10]} {[%emt 00:03:20]} Kg8 {[%clk 00:51:15]} {[%emt 00:00:17]}
32. Nf6+ {[%clk 00:07:48]} {[%emt 00:04:53]} 1/2-1/2

[Event "FIDE Grand Swiss 2023"]
[Site "Villa Marina, Douglas, Isle of Man, Isle Of Man"]
[Date "2023.11.05"]
[Round "11.46"]
[White "Dardha, Daniel"]
[Black "Svane, Rasmus"]
[Result "1/2-1/2"]
[TimeControl "40/90 + 30 + 30s/move"]
[WhiteFideId "240990"]
[BlackFideId "4657101"]
[WhiteElo "2580"]
[BlackElo "2646"]

1. d4 {[%clk 01:40:21]} {[%emt 00:00:38]} Nf6 {[%clk 01:40:51]} {[%emt
00:00:09]} 2. c4 {[%clk 01:40:48]} {[%emt 00:00:03]} e6 {[%clk 01:41:14]}
{[%emt 00:00:08]} 3. g3 {[%clk 01:41:13]} {[%emt 00:00:05]} d5 {[%clk
01:41:30]} {[%emt 00:00:13]} 4. Bg2 {[%clk 01:41:37]} {[%emt 00:00:06]} Be7
{[%clk 01:41:51]} {[%emt 00:00:09]} 5. Nf3 {[%clk 01:42:01]} {[%emt 00:00:06]}
O-O {[%clk 01:42:14]} {[%emt 00:00:07]} 6. O-O {[%clk 01:42:24]} {[%emt
00:00:08]} dxc4 {[%clk 01:42:31]} {[%emt 00:00:12]} 7. Qc2 {[%clk 01:42:46]}
{[%emt 00:00:08]} a6 {[%clk 01:42:55]} {[%emt 00:00:07]} 8. a4 {[%clk
01:43:10]} {[%emt 00:00:06]} Bd7 {[%clk 01:43:18]} {[%emt 00:00:07]} 9. Qxc4
{[%clk 01:43:32]} {[%emt 00:00:08]} Bc6 {[%clk 01:43:43]} {[%emt 00:00:04]} 10.
Bg5 {[%clk 01:43:46]} {[%emt 00:00:15]} Bd5 {[%clk 01:43:15]} {[%emt 00:00:58]}
11. Qc2 {[%clk 01:38:26]} {[%emt 00:05:51]} Be4 {[%clk 01:43:39]} {[%emt
00:00:06]} 12. Qd1 {[%clk 01:33:02]} {[%emt 00:05:54]} c5 {[%clk 01:31:58]}
{[%emt 00:12:12]} 13. dxc5 {[%clk 01:25:38]} {[%emt 00:07:53]} h6 {[%clk
01:12:06]} {[%emt 00:20:22]} 14. Bxf6 {[%clk 01:21:07]} {[%emt 00:05:01]} Bxf6
{[%clk 01:12:06]} {[%emt 00:00:30]} 15. Nc3 {[%clk 01:13:30]} {[%emt 00:08:06]}
Bxc3 {[%clk 01:09:03]} {[%emt 00:03:33]} 16. bxc3 {[%clk 01:03:23]} {[%emt
00:10:38]} Nd7 {[%clk 01:08:55]} {[%emt 00:00:37]} 17. Qd4 {[%clk 01:00:03]}
{[%emt 00:03:51]} Bc6 {[%clk 01:05:38]} {[%emt 00:03:47]} 18. Ne5 {[%clk
00:56:07]} {[%emt 00:04:26]} Nxe5 {[%clk 01:05:53]} {[%emt 00:00:15]} 19. Qxe5
{[%clk 00:56:34]} {[%emt 00:00:03]} Bxg2 {[%clk 00:46:16]} {[%emt 00:20:07]} 20.
Kxg2 {[%clk 00:56:59]} {[%emt 00:00:05]} Qa5 {[%clk 00:45:49]} {[%emt
00:00:57]} 21. Rfb1 {[%clk 00:54:17]} {[%emt 00:03:11]} Rac8 {[%clk 00:45:15]}
{[%emt 00:01:05]} 22. Rxb7 {[%clk 00:52:53]} {[%emt 00:01:54]} Rxc5 {[%clk
00:45:22]} {[%emt 00:00:23]} 23. Qd6 {[%clk 00:52:41]} {[%emt 00:00:40]} Qxc3
{[%clk 00:30:01]} {[%emt 00:15:53]} 24. Rd1 {[%clk 00:49:30]} {[%emt 00:03:40]}
Qa5 {[%clk 00:19:10]} {[%emt 00:11:22]} 25. Rd4 {[%clk 00:42:40]} {[%emt
00:07:20]} Rc2 {[%clk 00:17:55]} {[%emt 00:01:46]} 26. e3 {[%clk 00:40:55]}
{[%emt 00:02:14]} g5 {[%clk 00:13:22]} {[%emt 00:05:03]} 27. Rb8 {[%clk
00:29:51]} {[%emt 00:11:35]} Rxb8 {[%clk 00:12:56]} {[%emt 00:00:56]} 28. Qxb8+
{[%clk 00:30:16]} {[%emt 00:00:04]} Kg7 {[%clk 00:07:09]} {[%emt 00:06:16]} 29.
g4 {[%clk 00:28:29]} {[%emt 00:02:18]} Qc7 {[%clk 00:06:45]} {[%emt 00:00:54]}
30. Qxc7 {[%clk 00:28:23]} {[%emt 00:00:36]} Rxc7 {[%clk 00:07:09]} {[%emt
00:00:06]} 1/2-1/2